fUST/lending_fUST_20250726
["ID","MTS","AMOUNT","RATE_DAILY","PERIOD"]
[375027785,1753506650180,-460.0,0.00019726,2]
[375027786,1753506650190,-460.0,0.00019726,2]
[375027787,1753506650199,-2091.96,0.00019726,2]
[375027788,1753506650209,-308.846474,0.00019726,2]
[375027789,1753506650218,-460.0,0.00019726,2]
[375027790,1753506650228,-1145.81,0.00019726,2]
[375027791,1753506650237,-308.846474,0.00019726,2]
[375027792,1753506650249,-460.0,0.00019726,2]
[375027793,1753506650258,-460.0,0.00019726,2]
[375027794,1753506650267,-177.781805,0.00019726,2]
[375027795,1753506650277,-460.0,0.00019726,2]
[375027796,1753506650287,-754.64,0.00019726,2]
[375027797,1753506650296,-460.0,0.00019726,2]
[375027798,1753506650307,-460.0,0.00019726,2]
[375027799,1753506650316,-177.781805,0.00019726,2]
[375027800,1753506650326,-460.0,0.00019726,2]
[375027801,1753506650336,-286.09346097,0.00019726,2]
[375027802,1753506650346,-460.0,0.00019726,2]
[375027803,1753506650357,-151.0,0.00019726,2]
[375027804,1753506650367,-228.00167,0.00019726,2]
[375027805,1753506650376,-460.0,0.00019726,2]
[375027806,1753506650388,-460.0,0.00019726,2]
[375027807,1753506650398,-479.90358092,0.00019726,2]
[375027808,1753506650408,-517.45,0.00019726,2]
[375027809,1753506650417,-460.0,0.00019726,2]
[375027810,1753506650427,-460.0,0.00019726,2]
[375027811,1753506650437,-546.35,0.00019726,2]
[375027812,1753506650446,-460.0,0.00019726,2]
[375027813,1753506650455,-818.21,0.00019726,2]
[375027814,1753506650464,-460.0,0.00019726,2]
[375027815,1753506650474,-460.0,0.00019726,2]
[375027816,1753506650483,-460.0,0.00019726,2]
[375027817,1753506650492,-460.0,0.00019726,2]
[375027818,1753506650502,-5382.96,0.00019726,2]
[375027819,1753506650511,-460.0,0.00019726,2]
[375027820,1753506650520,-2747.99,0.00019726,2]
[375027821,1753506650530,-460.0,0.00019726,2]
[375027822,1753506650540,-151.0,0.00019726,2]
[375027823,1753506650550,-7623.72,0.00019726,2]
[375027824,1753506650559,-460.0,0.00019726,2]
[375027825,1753506650568,-2683.38,0.00019726,2]
[375027826,1753506650577,-945.13,0.00019726,2]
[375027827,1753506650587,-460.0,0.00019726,2]
[375027828,1753506650674,-460.0,0.00019726,2]
[375027829,1753506650683,-460.0,0.00019726,2]
[375027830,1753506650694,-748.91,0.00019726,2]
[375027831,1753506650704,-151.0,0.00019726,2]
[375027832,1753506650714,-460.0,0.00019726,2]
[375027833,1753506650723,-1055.01,0.00019726,2]
[375027834,1753506650733,-460.0,0.00019726,2]
[375027835,1753506650744,-460.0,0.00019726,2]
[375027836,1753506650754,-151.0,0.00019726,2]
[375027837,1753506650763,-460.0,0.00019726,2]
[375027838,1753506650773,-460.0,0.00019726,2]
[375027839,1753506650782,-460.0,0.00019726,2]
[375027840,1753506650792,-460.0,0.00019726,2]
[375027841,1753506650801,-460.0,0.00019726,2]
[375027842,1753506650810,-460.0,0.00019726,2]
[375027843,1753506650819,-869.16,0.00019726,2]
[375027844,1753506650829,-460.0,0.00019726,2]
[375027845,1753506650839,-4074.24,0.00019726,2]
[375027846,1753506650848,-460.0,0.00019726,2]
[375027847,1753506650857,-460.0,0.00019726,2]
[375027848,1753506650866,-479.02,0.00019726,2]
[375027849,1753506650875,-468.35448005,0.00019726,2]
[375027850,1753506650885,-1662.62,0.00019726,2]
[375027851,1753506650895,-460.0,0.00019726,2]
[375027852,1753506650904,-460.0,0.00019726,2]
[375027853,1753506650913,-579.19,0.00019726,2]
[375027854,1753506650923,-460.0,0.00019726,2]
[375027855,1753506650934,-277.47268191,0.00019726,2]
[375027856,1753506650943,-824.14,0.00019726,2]
[375027857,1753506650952,-1407.33,0.00019726,2]
[375027858,1753506650962,-480.52,0.00019726,2]
[375027859,1753506650972,-605.21,0.00019726,2]
[375027860,1753506650981,-1554.62,0.00019726,2]
[375027861,1753506650990,-600.72579166,0.00019726,2]
[375027862,1753506651000,-2654.05,0.00019726,2]
[375027863,1753506651009,-280.743412,0.00019726,2]
[375027864,1753506651019,-151.0,0.00019726,2]
[375027865,1753506651028,-460.0,0.00019726,2]
[375027866,1753506651039,-280.743412,0.00019726,2]
[375027867,1753506651049,-460.0,0.00019726,2]
[375027868,1753506651058,-460.0,0.00019726,2]
[375027869,1753506651068,-460.0,0.00019726,2]
[375027870,1753506651077,-3810.16,0.00019726,2]
[375027871,1753506651087,-460.0,0.00019726,2]
[375027872,1753506651096,-460.0,0.00019726,2]
[375027873,1753506651106,-2218.68,0.00019726,2]
[375027874,1753506651116,-460.0,0.00019726,2]
[375027875,1753506651125,-509.15,0.00019726,2]
[375027876,1753506651136,-460.0,0.00019726,2]
[375027877,1753506651146,-460.0,0.00019726,2]
[375027878,1753506651155,-460.0,0.00019726,2]
[375027879,1753506651164,-460.0,0.00019726,2]
[375027880,1753506651174,-460.0,0.00019726,2]
[375027881,1753506651183,-460.0,0.00019726,2]
[375027882,1753506651193,-460.0,0.00019726,2]
[375027883,1753506651202,-460.0,0.00019726,2]
[375027884,1753506651212,-151.0,0.00019726,2]
[375027885,1753506651221,-1435.19,0.00019726,2]
[375027886,1753506651231,-613.83,0.00019726,2]
[375027887,1753506651241,-971.21,0.00019726,2]
[375027888,1753506651251,-460.0,0.00019726,2]
[375027889,1753506651260,-460.0,0.00019726,2]
[375027890,1753506651270,-678.3,0.00019726,2]
[375027891,1753506651280,-2704.97,0.00019726,2]
[375027892,1753506651291,-460.0,0.00019726,2]
[375027893,1753506651301,-312.983737,0.00019726,2]
[375027894,1753506651310,-460.0,0.00019726,2]
[375027895,1753506651320,-460.0,0.00019726,2]
[375027896,1753506651330,-10728.03,0.00019726,2]
[375027897,1753506651339,-312.983737,0.00019726,2]
[375027898,1753506651348,-844.79,0.00019726,2]
[375027899,1753506651358,-460.0,0.00019726,2]
[375027900,1753506651367,-460.0,0.00019726,2]
[375027901,1753506651376,-460.0,0.00019726,2]
[375027902,1753506651386,-460.0,0.00019726,2]
[375027903,1753506651395,-764.48,0.00019726,2]
[375027904,1753506651404,-460.0,0.00019726,2]
[375027905,1753506651413,-3095.75,0.00019726,2]
[375027906,1753506651422,-1723.2,0.00019726,2]
[375027907,1753506651431,-373.49665281,0.00019726,2]
[375027908,1753506651441,-156.866989,0.00019726,2]
[375027909,1753506651450,-460.0,0.00019726,2]
[375027910,1753506651459,-583.83,0.00019726,2]
[375027911,1753506651468,-460.0,0.00019726,2]
[375027912,1753506651478,-151.0,0.00019726,2]
[375027913,1753506651487,-1005.62,0.00019726,2]
[375027914,1753506651496,-460.0,0.00019726,2]
[375027915,1753506651505,-151.0,0.00019726,2]
[375027916,1753506651515,-2244.25,0.00019726,2]
[375027917,1753506651524,-463.02079923,0.00019726,2]
[375027918,1753506651534,-460.0,0.00019726,2]
[375027919,1753506651543,-256.285762,0.00019726,2]
[375027920,1753506651552,-1436.59,0.00019726,2]
[375027921,1753506651561,-460.0,0.00019726,2]
[375027922,1753506651571,-460.0,0.00019726,2]
[375027923,1753506651580,-599.42932843,0.00019726,2]
[375027924,1753506651589,-460.0,0.00019726,2]
[375027925,1753506651598,-460.0,0.00019726,2]
[375027926,1753506651607,-460.0,0.00019726,2]
[375027927,1753506651618,-151.0,0.00019726,2]
[375027928,1753506651628,-460.0,0.00019726,2]
[375027929,1753506651637,-929.83,0.00019726,2]
[375027930,1753506651650,-460.0,0.00019726,2]
[375027931,1753506651659,-460.0,0.00019726,2]
[375027932,1753506651672,-460.0,0.00019726,2]
[375027933,1753506651682,-460.0,0.00019726,2]
[375027934,1753506651691,-1208.55,0.00019726,2]
[375027935,1753506651700,-1275.68945057,0.00019728,2]
[375027936,1753506651710,-641.87123683,0.00019773,2]
[375027937,1753506651719,-644.59495138,0.00019773,2]
[375027938,1753506651729,-500.0,0.00019773,2]
[375027939,1753506651738,-500.0,0.00019773,2]
[375027940,1753506651748,-501.04459581,0.00019773,2]
[375027941,1753506651758,-505.55700613,0.00019773,2]
[375027942,1753506651767,-506.27053101,0.00019773,2]
[375027943,1753506651776,-500.0,0.00019773,2]
[375027944,1753506651786,-500.0,0.00019773,2]
[375027945,1753506651795,-160.0,0.00019786,2]
[375027946,1753506651805,-526.41699184,0.00019786,2]
[375027947,1753506651814,-214.8008262,0.00019787,2]
[375027948,1753506651823,-476.98041219,0.00019787,2]
[375027949,1753506651833,-160.0,0.00019787,2]
[375027950,1753506651842,-160.0,0.00019787,2]
[375027951,1753506651852,-215.9757969,0.00019787,2]
[375027952,1753506651862,-312.16666667,0.00019787,2]
[375027953,1753506651871,-12629.83479014,0.00019787,2]
[375027954,1753506651881,-231.25662632,0.00019787,2]
[375027955,1753506651892,-160.0,0.00019787,2]
[375027956,1753506651902,-160.0,0.00019787,2]
[375027957,1753506651911,-840.57612966,0.00019787,2]
[375027958,1753506651921,-160.0,0.00019787,2]
[375027959,1753506651930,-160.0,0.00019787,2]
[375027960,1753506651940,-160.0,0.00019787,2]
[375027961,1753506651950,-223.0315306,0.00019791,2]
[375027962,1753506651961,-160.0,0.00019792,2]
[375027963,1753506652038,-151.0,0.00019865,2]
[375027964,1753506652047,-1275.68945057,0.00019866,2]
[375027965,1753506652056,-631.00259164,0.00019866,2]
[375027966,1753506652066,-273.0,0.00019887,2]
[375027967,1753506652076,-3000.0,0.000199,2]
[375027968,1753506652087,-308.846474,0.000199,2]
[375027969,1753506652096,-308.846474,0.000199,2]
[375027970,1753506652106,-3000.0,0.0001991,2]
[375027971,1753506652116,-151.0,0.00019917,2]
[375027972,1753506652126,-3000.0,0.0001992,2]
[375027973,1753506652136,-152.837247,0.00019925,2]
[375027974,1753506652146,-360.645254,0.00019925,2]
[375027975,1753506652156,-360.645254,0.00019925,2]
[375027976,1753506652166,-151.0,0.00019925,2]
[375027977,1753506652176,-177.781805,0.00019925,2]
[375027978,1753506652185,-177.781805,0.00019925,2]
[375027979,1753506652195,-280.743412,0.00019925,2]
[375027980,1753506652205,-169.436032,0.00019925,2]
[375027981,1753506652218,-280.743412,0.00019925,2]
[375027982,1753506652228,-151.0,0.00019925,2]
[375027983,1753506652238,-151.0,0.00019925,2]
[375027984,1753506652247,-4627.0,0.00019925,2]
[375027985,1753506652257,-3000.0,0.0001993,2]
[375027986,1753506652267,-151.0,0.0001993,2]
[375027987,1753506652276,-151.0,0.0001993,2]
[375027988,1753506652286,-273.0,0.00019939,2]
[375027989,1753506652295,-3000.0,0.0001994,2]
[375027990,1753506652305,-273.0,0.00019944,2]
[375027991,1753506652315,-3000.0,0.0001995,2]
[375027992,1753506652324,-267.65,0.00019954,2]
[375027993,1753506652333,-3000.0,0.0001996,2]
[375027994,1753506652343,-151.0,0.0001996,2]
[375027995,1753506652352,-208.5694,0.0001996,2]
[375027996,1753506652361,-441.0,0.00019961,2]
[375027997,1753506652371,-3000.0,0.0001997,2]
[375027998,1753506652380,-500.97395458,0.00019973,2]
[375027999,1753506652389,-500.0,0.00019973,2]
[375028000,1753506652400,-407.81908233,0.00019973,2]
[375028001,1753506652409,-500.04211717,0.00019973,2]
[375028002,1753506652419,-270.23744916,0.00019973,2]
[375028003,1753506652428,-500.0,0.00019973,2]
[375028004,1753506652437,-500.0,0.00019973,2]
[375028005,1753506652447,-500.0,0.00019973,2]
[375028006,1753506652457,-500.0,0.00019973,2]
[375028007,1753506652466,-500.0,0.00019973,2]
[375028008,1753506652475,-414.9329503,0.00019973,2]
[375028009,1753506652485,-500.0,0.00019973,2]
[375028010,1753506652494,-500.0,0.00019973,2]
[375028011,1753506652504,-500.0,0.00019973,2]
[375028012,1753506652513,-500.86646289,0.00019973,2]
[375028013,1753506652522,-500.0,0.00019973,2]
[375028014,1753506652531,-500.0,0.00019973,2]
[375028015,1753506652542,-553.01407841,0.00019973,2]
[375028016,1753506652551,-500.0,0.00019973,2]
[375028017,1753506652560,-500.0,0.00019973,2]
[375028018,1753506652570,-500.0,0.00019973,2]
[375028019,1753506652579,-500.0,0.00019973,2]
[375028020,1753506652589,-500.0,0.00019973,2]
[375028021,1753506652599,-500.0,0.00019973,2]
[375028022,1753506652609,-151.0,0.00019973,2]
[375028023,1753506652618,-3000.0,0.0001998,2]
[375028024,1753506652628,-3000.0,0.0001999,2]
[375028025,1753506652638,-151.0,0.0001999,2]
[375028026,1753506652647,-151.0,0.0001999,2]
[375028027,1753506652656,-312.983737,0.0001999,2]
[375028028,1753506652670,-312.983737,0.0001999,2]
[375028029,1753506652679,-151.0,0.0001999,2]
[375028030,1753506652688,-151.0,0.0002,2]
[375028031,1753506652696,-578.0,0.0002,2]
[375028032,1753506652707,-173.17413193,0.0002,2]
[375028033,1753506652716,-617.0,0.0002,2]
[375028034,1753506652725,-7216.10938384,0.0002,10]
[375028035,1753506652733,-7000.0,0.0002,2]
[375028036,1753506652743,-9759.22110625,0.0002,2]
[375028037,1753506652751,-16013.0450139,0.0002,2]
[375028038,1753506652760,-151.0,0.0002,2]
[375028039,1753506652768,-151.0,0.0002,2]
[375028040,1753506652777,-151.0,0.0002,2]
[375028041,1753506652787,-151.0,0.0002,2]
[375028042,1753506652795,-206.393722,0.0002,2]
[375028043,1753506652803,-229.408075,0.0002,2]
[375028044,1753506652812,-151.0,0.0002,2]
[375028045,1753506652821,-151.0,0.0002,2]
[375028046,1753506652830,-151.0,0.0002,2]
[375028047,1753506652839,-151.0,0.0002,2]
[375028048,1753506652848,-151.0,0.0002,2]
[375028049,1753506652858,-151.0,0.0002,2]
[375028050,1753506652867,-151.0,0.0002,2]
[375028051,1753506652877,-151.0,0.0002,2]
[375028052,1753506652886,-151.0,0.0002,2]
[375028053,1753506652896,-151.0,0.0002,2]
[375028054,1753506652905,-151.0,0.0002,2]
[375028055,1753506652914,-460.0,0.0002,2]
[375028056,1753506652924,-462.74039873,0.0002,2]
[375028057,1753506652933,-460.0,0.0002,2]
[375028058,1753506652943,-460.0,0.0002,2]
[375028059,1753506652952,-460.0,0.0002,2]
[375028060,1753506652961,-471.16641159,0.0002,2]
[375028061,1753506652971,-3000.0,0.0002,2]
[375028062,1753506652980,-154.250564,0.0002,2]
[375028063,1753506652988,-154.250564,0.0002,2]
[375028064,1753506652997,-615.78,0.0002,2]
[375028065,1753506653005,-151.0,0.0002,2]
[375028066,1753506653014,-292.023887,0.0002,2]
[375028067,1753506653023,-151.0,0.0002,2]
[375028068,1753506653033,-460.0,0.0002,2]
[375028069,1753506653042,-460.0,0.0002,2]
[375028070,1753506653051,-237.338135,0.0002,2]
[375028071,1753506653060,-151.0,0.0002,2]
[375028072,1753506653070,-237.338135,0.0002,2]
[375028073,1753506653079,-252.503013,0.0002,2]
[375028074,1753506653088,-252.503013,0.0002,2]
[375028075,1753506653098,-152.347134,0.0002,2]
[375028076,1753506653107,-460.0,0.0002,2]
[375028077,1753506653116,-151.0,0.0002,2]
[375028078,1753506653125,-151.0,0.0002,2]
[375028079,1753506653134,-151.0,0.0002,2]
[375028080,1753506653144,-151.0,0.0002,2]
[375028081,1753506653152,-159.49698125,0.0002,2]
[375028082,1753506653162,-289.502384,0.0002,2]
[375028083,1753506653171,-289.502384,0.0002,2]
[375028084,1753506653180,-151.0,0.0002,2]
[375028085,1753506653190,-151.0,0.0002,2]
[375028086,1753506653199,-289.502384,0.0002,2]
[375028087,1753506653274,-289.502384,0.0002,2]
[375028088,1753506653284,-298.2069059,0.0002,2]
[375028089,1753506653293,-464.30362,0.0002,2]
[375028090,1753506653303,-155.93729722,0.0002,2]
[375028091,1753506653313,-684.31,0.0002,2]
[375028092,1753506653322,-151.0,0.0002,2]
[375028093,1753506653333,-887.79,0.0002,2]
[375028094,1753506653342,-460.0,0.0002,2]
[375028095,1753506653351,-460.0,0.0002,2]
[375028096,1753506653361,-460.0,0.0002,2]
[375028097,1753506653370,-460.0,0.0002,2]
[375028098,1753506653379,-460.0,0.0002,2]
[375028099,1753506653388,-460.0,0.0002,2]
[375028100,1753506653397,-460.0,0.0002,2]
[375028101,1753506653406,-208.896068,0.0002,2]
[375028102,1753506653415,-208.896068,0.0002,2]
[375028103,1753506653425,-208.896068,0.0002,2]
[375028104,1753506653434,-208.896068,0.0002,2]
[375028105,1753506653443,-460.0,0.0002,2]
[375028106,1753506653453,-460.0,0.0002,2]
[375028107,1753506653462,-460.0,0.0002,2]
[375028108,1753506653471,-460.0,0.0002,2]
[375028109,1753506653480,-525.06,0.0002,2]
[375028110,1753506653489,-584.95705497,0.0002,2]
[375028111,1753506653498,-1191.62,0.0002,2]
[375028112,1753506653507,-483.47083445,0.0002,2]
[375028113,1753506653516,-460.0,0.0002,2]
[375028114,1753506653525,-1208.45,0.0002,2]
[375028115,1753506653534,-460.0,0.0002,2]
[375028116,1753506653543,-460.0,0.0002,2]
[375028117,1753506653552,-460.0,0.0002,2]
[375028118,1753506653561,-460.0,0.0002,2]
[375028119,1753506653570,-473.42,0.0002,2]
[375028120,1753506653579,-460.0,0.0002,2]
[375028121,1753506653589,-460.0,0.0002,2]
[375028122,1753506653598,-460.0,0.0002,2]
[375028123,1753506653607,-526.31,0.0002,2]
[375028124,1753506653617,-460.0,0.0002,2]
[375028125,1753506653626,-460.0,0.0002,2]
[375028126,1753506653635,-460.0,0.0002,2]
[375028127,1753506653645,-460.0,0.0002,2]
[375028128,1753506653658,-460.0,0.0002,2]
[375028129,1753506653670,-460.0,0.0002,2]
[375028130,1753506653679,-151.0,0.0002,2]
[375028131,1753506653688,-151.0,0.0002,2]
[375028132,1753506653698,-460.0,0.0002,2]
[375028133,1753506653707,-460.0,0.0002,2]
[375028134,1753506653716,-460.0,0.0002,2]
[375028135,1753506653726,-464.44,0.0002,2]
[375028136,1753506653735,-460.0,0.0002,2]
[375028137,1753506653744,-683.39,0.0002,2]
[375028138,1753506653754,-151.0,0.0002,2]
[375028139,1753506653763,-460.0,0.0002,2]
[375028140,1753506653772,-460.0,0.0002,2]
[375028141,1753506653782,-460.0,0.0002,2]
[375028142,1753506653791,-160.404493,0.0002,2]
[375028143,1753506653800,-160.404493,0.0002,2]
[375028144,1753506653809,-460.0,0.0002,2]
[375028145,1753506653819,-460.0,0.0002,2]
[375028146,1753506653828,-160.404493,0.0002,2]
[375028147,1753506653837,-160.404493,0.0002,2]
[375028148,1753506653847,-360.645254,0.0002,2]
[375028149,1753506653856,-360.645254,0.0002,2]
[375028150,1753506653865,-999.46,0.0002,2]
[375028151,1753506653875,-606.99,0.0002,2]
[375028152,1753506653884,-460.0,0.0002,2]
[375028153,1753506653893,-1956.219402,0.0002,2]
[375028154,1753506653903,-460.0,0.0002,2]
[375028155,1753506653913,-1956.219402,0.0002,2]
[375028156,1753506653922,-1956.219402,0.0002,2]
[375028157,1753506653931,-1956.219402,0.0002,2]
[375028158,1753506653940,-460.0,0.0002,2]
[375028159,1753506653949,-460.0,0.0002,2]
[375028160,1753506653959,-151.0,0.0002,2]
[375028161,1753506653967,-460.0,0.0002,2]
[375028162,1753506653977,-2091.96,0.0002,2]
[375028163,1753506653986,-308.846474,0.0002,2]
[375028164,1753506653996,-460.0,0.0002,2]
[375028165,1753506654005,-1145.81,0.0002,2]
[375028166,1753506654014,-308.846474,0.0002,2]
[375028167,1753506654023,-460.0,0.0002,2]
[375028168,1753506654032,-460.0,0.0002,2]
[375028169,1753506654042,-460.0,0.0002,2]
[375028170,1753506654051,-754.64,0.0002,2]
[375028171,1753506654061,-460.0,0.0002,2]
[375028172,1753506654070,-177.781805,0.0002,2]
[375028173,1753506654080,-460.0,0.0002,2]
[375028174,1753506654090,-177.781805,0.0002,2]
[375028175,1753506654099,-460.0,0.0002,2]
[375028176,1753506654109,-460.0,0.0002,2]
[375028177,1753506654118,-151.0,0.0002,2]
[375028178,1753506654128,-460.0,0.0002,2]
[375028179,1753506654137,-547.92105966,0.0002,2]
[375028180,1753506654146,-517.45,0.0002,2]
[375028181,1753506654155,-460.0,0.0002,2]
[375028182,1753506654164,-460.0,0.0002,2]
[375028183,1753506654173,-546.35,0.0002,2]
[375028184,1753506654183,-460.0,0.0002,2]
[375028185,1753506654192,-818.21,0.0002,2]
[375028186,1753506654202,-467.92561607,0.0002,2]
[375028187,1753506654211,-460.0,0.0002,2]
[375028188,1753506654220,-466.2923783,0.0002,2]
[375028189,1753506654229,-460.0,0.0002,2]
[375028190,1753506654239,-5382.96,0.0002,2]
[375028191,1753506654248,-460.0,0.0002,2]
[375028192,1753506654257,-2747.99,0.0002,2]
[375028193,1753506654266,-460.0,0.0002,2]
[375028194,1753506654275,-7623.72,0.0002,2]
[375028195,1753506654285,-151.0,0.0002,2]
[375028196,1753506654294,-460.0,0.0002,2]
[375028197,1753506654303,-2683.38,0.0002,2]
[375028198,1753506654312,-945.13,0.0002,2]
[375028199,1753506654321,-460.0,0.0002,2]
[375028200,1753506654330,-460.0,0.0002,2]
[375028201,1753506654339,-460.0,0.0002,2]
[375028202,1753506654414,-748.91,0.0002,2]
[375028203,1753506654423,-460.0,0.0002,2]
[375028204,1753506654432,-151.0,0.0002,2]
[375028205,1753506654442,-1055.01,0.0002,2]
[375028206,1753506654451,-460.0,0.0002,2]
[375028207,1753506654460,-460.0,0.0002,2]
[375028208,1753506654469,-151.0,0.0002,2]
[375028209,1753506654478,-460.0,0.0002,2]
[375028210,1753506654488,-460.0,0.0002,2]
[375028211,1753506654497,-460.0,0.0002,2]
[375028212,1753506654506,-460.0,0.0002,2]
[375028213,1753506654516,-460.0,0.0002,2]
[375028214,1753506654526,-460.0,0.0002,2]
[375028215,1753506654535,-869.16,0.0002,2]
[375028216,1753506654545,-448.14173958,0.0002,2]
[375028217,1753506654554,-4074.24,0.0002,2]
[375028218,1753506654564,-460.0,0.0002,2]
[375028219,1753506654573,-471.91792295,0.0002,2]
[375028220,1753506654583,-479.02,0.0002,2]
[375028221,1753506654592,-1662.62,0.0002,2]
[375028222,1753506654602,-460.0,0.0002,2]
[375028223,1753506654611,-460.0,0.0002,2]
[375028224,1753506654620,-579.19,0.0002,2]
[375028225,1753506654629,-460.0,0.0002,2]
[375028226,1753506654649,-824.14,0.0002,2]
[375028227,1753506654659,-1407.33,0.0002,2]
[375028228,1753506654681,-480.52,0.0002,2]
[375028229,1753506654698,-605.21,0.0002,2]
[375028230,1753506654709,-1554.62,0.0002,2]
[375028231,1753506654719,-2654.05,0.0002,2]
[375028232,1753506654729,-280.743412,0.0002,2]
[375028233,1753506654738,-460.0,0.0002,2]
[375028234,1753506654749,-460.0,0.0002,2]
[375028235,1753506654760,-280.743412,0.0002,2]
[375028236,1753506654771,-460.0,0.0002,2]
[375028237,1753506654781,-460.0,0.0002,2]
[375028238,1753506654791,-460.0,0.0002,2]
[375028239,1753506654800,-460.0,0.0002,2]
[375028240,1753506654809,-2218.68,0.0002,2]
[375028241,1753506654819,-3810.16,0.0002,2]
[375028242,1753506654828,-460.0,0.0002,2]
[375028243,1753506654837,-509.15,0.0002,2]
[375028244,1753506654847,-460.0,0.0002,2]
[375028245,1753506654856,-460.0,0.0002,2]
[375028246,1753506654866,-460.0,0.0002,2]
[375028247,1753506654876,-460.0,0.0002,2]
[375028248,1753506654885,-460.0,0.0002,2]
[375028249,1753506654895,-460.0,0.0002,2]
[375028250,1753506654904,-460.0,0.0002,2]
[375028251,1753506654914,-460.0,0.0002,2]
[375028252,1753506654923,-151.0,0.0002,2]
[375028253,1753506654932,-1435.19,0.0002,2]
[375028254,1753506654941,-613.83,0.0002,2]
[375028255,1753506654951,-971.21,0.0002,2]
[375028256,1753506654960,-463.10316732,0.0002,2]
[375028257,1753506654969,-460.0,0.0002,2]
[375028258,1753506654979,-678.3,0.0002,2]
[375028259,1753506654988,-2704.97,0.0002,2]
[375028260,1753506654997,-484.26787376,0.0002,2]
[375028261,1753506655007,-460.0,0.0002,2]
[375028262,1753506655016,-312.983737,0.0002,2]
[375028263,1753506655027,-460.0,0.0002,2]
[375028264,1753506655036,-10728.03,0.0002,2]
[375028265,1753506655046,-844.79,0.0002,2]
[375028266,1753506655055,-312.983737,0.0002,2]
[375028267,1753506655064,-460.0,0.0002,2]
[375028268,1753506655074,-460.0,0.0002,2]
[375028269,1753506655083,-460.0,0.0002,2]
[375028270,1753506655092,-764.48,0.0002,2]
[375028271,1753506655101,-460.0,0.0002,2]
[375028272,1753506655110,-3095.75,0.0002,2]
[375028273,1753506655119,-1723.2,0.0002,2]
[375028274,1753506655128,-460.0,0.0002,2]
[375028275,1753506655138,-583.83,0.0002,2]
[375028276,1753506655148,-460.0,0.0002,2]
[375028277,1753506655159,-151.0,0.0002,2]
[375028278,1753506655168,-1005.62,0.0002,2]
[375028279,1753506655177,-460.0,0.0002,2]
[375028280,1753506655187,-2244.25,0.0002,2]
[375028281,1753506655196,-151.0,0.0002,2]
[375028282,1753506655205,-4000.0,0.0002,4]
[375028283,1753506655214,-460.0,0.0002,2]
[375028284,1753506655223,-1436.59,0.0002,2]